Cogmind - Beta 9.3 @@@ ROGUE MODE // 2019.12.28 @ 15:45:31 Player: cptwinky Result: Destroyed by as-26038 with Assembled F-torch Performance ------------- Evolutions (0) 0 Regions Visited (2) 400 Robots Destroyed (25) 125 Value Destroyed (588) 588 Prototype IDs (0) 0 Alien Tech Used (0) 0 Bonus (18) 18 TOTAL SCORE: 1131 Bonus ------- High Alert Combat Kills 18 Cogmind --------- Core Integrity 0/250 Matter 300/300 Energy 99/100 System Corruption 0% Temperature Cool (20) Movement Rolling (110) Ox1 Location -10/Mines Parts ------- > --- POWER (1) -------- (None) > --- PROPULSION (2) --- Compact Wheel > --- UTILITY (2) ------ Small Storage Unit Large Storage Unit > --- WEAPON (2) ------- (None) > --- INVENTORY (12) --- Ion Engine Light Treads Light Treads Compact Wheel Compact Wheel Compact Wheel Improved Heat Sink Hacking Suite Light Assault Rifle Light Assault Rifle Datajack Peak State ------------ > --- POWER ------------ Light Nuclear Core > --- PROPULSION ------- Compact Wheel Compact Wheel > --- UTILITY ---------- Small Storage Unit Large Storage Unit > --- WEAPON ----------- Light Assault Rifle Light Assault Rifle > --- INVENTORY -------- Ion Engine Light Treads Light Treads Compact Wheel Compact Wheel Compact Wheel Improved Heat Sink Hacking Suite Small Laser Datajack [Rating: 10] Favorites ----------- Power Ion Engine Engine Ion Engine Power Core Light Nuclear Core Propulsion Compact Wheel Treads Light Treads Wheel Compact Wheel Utility Small Storage Unit Storage Small Storage Unit Weapon Small Laser Energy Gun Small Laser Ballistic Gun Light Assault Rifle Launcher Grenade Launcher Build | -11 -10 -10 ------- Run | Scr Mat Min Slots Evolved . | . . . Power . | . . . Propulsion . | . . . Utility . | . . . Weapon . | . . . Parts Attached 16 | 7 6 3 Power 2 | 1 . 1 Engine 1 | 1 . . Core 1 | . . 1 Reactor . | . . . Propulsion 4 | 2 2 . Treads 1 | 1 . . Leg . | . . . Wheel 3 | 1 2 . Hover . | . . . Flight . | . . . Utility 3 | 2 1 . Device . | . . . Storage 3 | 2 1 . Processor . | . . . Hackware . | . . . Protection . | . . . Artifact . | . . . Weapon 7 | 2 3 2 Energy Gun 4 | 2 1 1 Energy Cannon . | . . . Ballistic Gun 2 | . 1 1 Ballistic Cannon . | . . . Launcher 1 | . 1 . Special Weapon . | . . . Impact Weapon . | . . . Slashing Weapon . | . . . Piercing Weapon . | . . . Special Melee Weapon . | . . . Unidentified Prototypes . | . . . Parts Lost 8 | . 2 6 Power 1 | . . 1 Propulsion 1 | . . 1 Utility . | . . . Weapon 6 | . 2 4 Highest Loss Streak 4 | . 1 4 Average Slot Usage (%) 98 | . 99 97 Engine 10 | . 14 1 Core 3 | . . 11 Treads 2 | . 3 . Wheel 25 | . 24 27 Storage 28 | . 28 28 Energy Gun 12 | . 14 8 Ballistic Gun 8 | . 3 17 Launcher 5 | . 8 . Naked Turns . | . . . Heaviest Build 29 | 16 29 27 Greatest Support 32 | 10 32 32 Greatest Overweight (x) 1 | 1 1 1 Average Overweight (x) . | . . . Largest Inventory Capacity 12 | 8 12 12 Average Capacity 10 | 5 10 12 Most Carried 11 | 4 9 11 Average Carried 7 | 2 6 10 Final Capacity 12 | 8 12 12 Final Carried 11 | 4 9 11 Class Distribution -------------------- 100% | Mutant Dominant Class ---------------- Mutant | -10/Materials Mutant | -10/Mines Resources | -11 -10 -10 ----------- Run | Scr Mat Min Matter Collected 500 | 219 180 101 Remotely . | . . . Salvage Created 631 | 65 476 90 Parts 51 | 5 34 12 Haulers Intercepted 1 | . 1 . Recyclers Shooed 2 | . 1 1 Parts Field Recycled . | . . . Retrieved Matter . | . . . Parts Self-Destructed . | . . . Prevented . | . . . Kills | -11 -10 -10 ------- Run | Scr Mat Min Combat Hostiles Destroyed 19 | . 15 4 Guns 7 | . 3 4 AOE 12 | . 12 . Classes Destroyed 6 | 1 5 . Builder 2 | . 2 . Hauler 1 | . 1 . Recycler 2 | 1 1 . Operator 1 | . 1 . Swarmer 6 | . 3 3 Grunt 13 | . 12 1 Best Kill Streak 8 | 1 8 3 Combat Bots Only 7 | . 7 3 Max Kills in Single Turn 3 | 1 3 2 Gunslinging 1 | . . 1 Exploded 2 | . 2 . Melee . | . . . Uniques/NPCs Destroyed . | . . . Combat | -11 -10 -10 -------- Run | Scr Mat Min Damage Taken 1045 | . 467 578 Core 256 | . 63 193 Absorbed by Shields . | . . . Core Remaining (%) 100 | 100 . . Volleys Fired 59 | 3 41 15 Largest 2 | 2 2 2 Hottest 90 | 90 90 60 Shots Fired 91 | 6 55 30 Gun 78 | 6 42 30 Cannon . | . . . Launcher 13 | . 13 . Special . | . . . Kinetic 31 | . 9 22 Thermal 47 | 6 33 8 Explosive 13 | . 13 . Electromagnetic . | . . . Robot Hit Streak 10 | 3 10 10 Robot Miss Streak 4 | 1 2 4 Penetration Max . | . . . Secondary Targets 2 | . . 2 Max Gunslinging Chain 1 | . . 1 Shots Hit Robots 65 | 4 39 22 Core Hits 47 | 2 38 7 Critical Hits . | . . . Critical Kills . | . . . Critical Parts Destroyed . | . . . Melee Attacks . | . . . Impact . | . . . Slashing . | . . . Piercing . | . . . Sneak Attacks . | . . . Combat Hostiles . | . . . Follow-up Attacks . | . . . Damage Inflicted 1584 | 48 1358 178 Guns 566 | 48 340 178 Cannons . | . . . Explosions 1018 | . 1018 . Melee . | . . . Ramming . | . . . Kinetic 159 | . 61 98 Thermal 407 | 48 279 80 Explosive 1018 | . 1018 . Electromagnetic . | . . . Impact . | . . . Slashing . | . . . Piercing . | . . . Highest Corruption . | . . . Average Corruption . | . . . Corruption Purged . | . . . Overload Shots . | . . . Overflow Damage 1 | . 1 . Projectiles . | . . . Explosions 1 | . 1 . Melee . | . . . Knockbacks . | . . . Impact . | . . . Kinetic . | . . . Secondary . | . . . Self-Inflicted Damage 45 | . 45 . Shots 5 | . 5 . Rammed . | . . . Targets Rammed . | . . . Kicked . | . . . Crushed . | . . . Highest Temperature 228 | 90 228 94 Average Temperature 69 | 46 99 28 Received Heat Transfer 406 | . 225 181 Siege Activations . | . . . Robots Corrupted . | . . . Combat Hostiles . | . . . Parts Fried . | . . . Impact Corruptions . | . . . Robots Melted . | . . . Combat Hostiles . | . . . Parts Melted . | . . . Heat Transferred 984 | 136 673 175 Parts Sabotaged . | . . . Parts Stolen . | . . . Parts Stripped . | . . . Power Chain Reactions . | . . . Missiles Intercepted . | . . . Alert | -11 -10 -10 ------- Run | Scr Mat Min Peak Influence 490 | 5 490 245 Average Influence 227 | 1 271 204 Maximum Alert Level 2 | . 2 1 Low Security (%) 28 | 100 14 37 Level 1 63 | . 72 62 Level 2 7 | . 12 . Level 3 . | . . . Level 4 . | . . . Level 5 . | . . . High Security . | . . . Max Security . | . . . Squads Dispatched 4 | . 4 . Investigation 3 | . 3 . Extermination . | . . . Reinforcement 1 | . 1 . Assault . | . . . Garrison . | . . . Intercept . | . . . Construction Impeded . | . . . Haulers Reinforced . | . . . Stealth | -11 -10 -10 --------- Run | Scr Mat Min Distress Signals 2 | . 2 . Communications Jammed . | . . . Distress Signals . | . . . Times Spotted 52 | . 26 26 Peak Tracking Total 20 | . 4 20 Tactical Retreats 1 | . . 1 Traps | -11 -10 -10 ------- Run | Scr Mat Min Traps Triggered . | . . . Indirectly . | . . . Trap Hack Attempts . | . . . Triggered . | . . . Disarmed . | . . . Reprogrammed . | . . . Reused . | . . . Traps Extracted . | . . . Installed . | . . . Triggered . | . . . Machines | -11 -10 -10 ---------- Run | Scr Mat Min Machines Disabled 2 | . 2 . Max in Single Turn 2 | . 2 . Machines Sabotaged . | . . . Garrisons Compromised . | . . . Overloaded Fab Kills . | . . . Fab Network Shutdowns . | . . . Hacking | -11 -10 -10 --------- Run | Scr Mat Min Machines Accessed 5 | . 5 . Terminals 3 | . 3 . Fabricators . | . . . Repair Stations . | . . . Recycling Units 2 | . 2 . Scanalyzers . | . . . Garrison Access . | . . . Total Hacks 15 | . 15 . Successful 5 | . 5 . Failed 10 | . 10 . Catastrophic 1 | . 1 . Database Lockouts . | . . . Manual 7 | . 7 . Terminals 10 | . 10 . Fabricators . | . . . Repair Stations . | . . . Recycling Units 5 | . 5 . Scanalyzers . | . . . Garrison Access . | . . . Terminal Hacks 2 | . 2 . Robot Analysis 2 | . 2 . Fabricator Hacks . | . . . Repair Station Hacks . | . . . Recycling Unit Hacks 2 | . 2 . Retrieve Components 2 | . 2 . Scanalyzer . | . . . Garrison Access Hacks . | . . . Unauthorized Hacks 5 | . 5 . Terminals . | . . . Fabricators . | . . . Repair Stations . | . . . Recycling Units 1 | . 1 . Tunnel 1 | . 1 . Scanalyzers . | . . . Garrison Access . | . . . Data Cores Recovered . | . . . Used . | . . . Hacking Detections 4 | . 4 . Full Trace Events 2 | . 2 . Feedback Events . | . . . Feedback Blocked . | . . . Robot Schematics Acquired . | . . . Robots Built . | . . . Matter . | . . . Time . | . . . Total Robot Build Rating . | . . . Part Schematics Acquired . | . . . Parts Built . | . . . Matter . | . . . Time . | . . . Total Part Build Rating . | . . . Parts Repaired . | . . . Time . | . . . Parts Recycled . | . . . Recycled Matter . | . . . Retrieved Matter . | . . . Retrieved Components 9 | . 9 . Parts Scanalyzed . | . . . Part Schematics Acquired . | . . . Parts Damaged . | . . . Bothacking | -11 -10 -10 ------------ Run | Scr Mat Min Used RIF Installer . | . . . Robots Hacked . | . . . Non-combat . | . . . Combat . | . . . Robot Hacks Applied . | . . . Relay Couplers Released . | . . . Robots Rewired . | . . . Allies Hacked . | . . . Hacks Repelled . | . . . Allies | -11 -10 -10 -------- Run | Scr Mat Min Total Allies . | . . . Largest Group . | . . . Highest-Rated Group . | . . . Highest-Rated Ally . | . . . Total Orders . | . . . Ally Attacks . | . . . Total Damage . | . . . Kills . | . . . Allies Corrupted . | . . . Allies Melted . | . . . Intel | -11 -10 -10 ------- Run | Scr Mat Min Robot Analysis Total 2 | . 2 . Derelict Logs Recovered . | . . . Drone Launches . | . . . Drone Recoveries . | . . . Exploration | -11 -10 -10 ------------- Run | Scr Mat Min Turns Passed 866 | 77 536 253 Spaces Moved 684 | 60 421 203 Core 13 | 13 . . Treads . | . . . Legs . | . . . Wheels 671 | 47 421 203 Hover . | . . . Flight . | . . . Fastest Speed 50 | 50 90 100 Average Speed 97 | 79 98 100 Slowest Speed 110 | 90 110 110 Overloaded Moves . | . . . Propulsion Burnouts . | . . . Robots Hopped . | . . . Cave-ins Triggered . | . . . Exploration Rate (%) 33 | 4 52 43 Regions Visited 2 Branch Regions 1 Pre-discovered Areas 1 | . 1 . Known Exits Taken . | . . . Unknown Exits Taken 2 | 1 1 . Scrap Searched 1 | . . 1 Spaces Dug . | . . . Terrain Destroyed 47 | . 47 . Melee . | . . . Projectile . | . . . AOE 47 | . 47 . Actions | -11 -10 -10 --------- Run | Scr Mat Min Total 795 | 79 490 226 Wait 18 | 6 12 . Move 682 | 59 420 203 Hop . | . . . Pick Up 16 | 4 8 4 Fast Attach 10 | 7 2 1 Attach 4 | . 2 2 Detach 3 | . 2 1 Swap 2 | . 2 . Drop 1 | . 1 . Fire 59 | 3 41 15 Melee . | . . . Ram . | . . . Kick . | . . . Crush . | . . . Escape Stasis . | . . . Rewire . | . . . Trap . | . . . Miscellaneous . | . . . Route ------- -11/Scrapyard -10/Materials (discovered 2 exits: [*Mat] / [*Min]) -10/Mines History --------- Turn | Location | Event 7 | -11/Scrapyard | Discovered new exit (range 16) 78 | -11/Scrapyard | Entered Materials 176 | -10/Materials | Destroyed 7 combat bots 310 | -10/Materials | Build established: Mutant 403 | -10/Materials | Discovered new exit (range 16) 415 | -10/Materials | Discovered new exit (range 14) 614 | -10/Materials | Entered Mines 826 | -10/Mines | Assembled infested the area 849 | -10/Mines | Core integrity fell below 50% 854 | -10/Mines | Core integrity fell below 20% 867 | -10/Mines | Destroyed by as-26038 with Assembled F-torch Last Messages --------------- 00850_ Lgt. Assault Rifle destroyed. 00850_ Com. Wheel destroyed. 00851_ Knocked back. 00852_ D-53 Grenadier unfolds itself. 00854_ A derelict is hurriedly installing traps. 00854_ as-76058 destroyed. 00854_ as-01827 destroyed. 00854_ as-92406 destroyed. 00854_ Lgt. Nuclear Core destroyed. 00855_ Sml. Laser destroyed. 00856_ KI-Q97(g): "Hehe, this'll put a wrench in their mining defense operations..." 00856_ KI-Q97(g) slips into the shadows. 00856_ as-18873 destroyed. 00856_ as-01082 destroyed. 00856_ as-96260 destroyed. 00856_ D-53 Grenadier shuts down. 00858_ as-80153 destroyed. 00861_ D-53 Grenadier heat damages Launcher Guidance Computer. 00861_ D-53 Grenadier destroyed. Map ----- +----------------------------------------------------+ | ??????????????# ##?????????????????????????????? | | ??????????????# % ##????????????????????????????? | | ??????????????## ##???????????????????????????? | | ?????????????#?# % #???????????????????????????? | | ?????????????# #% #???????????????????????????? | | ?????????????# %% ##???????????????????????????? | | ???????####### #????????????????????????????? | | ???????# % ##???????????????????????????? | | ???????# % ###??????????????????????????? | | ???????# ###### % =##?????????????????????????? | | ??????????????# % % #?????????????????????????? | | ??????????????# = ##????????????????????????? | | ??????????????? % % ##???????????????????????? | | ???????????????## """a ######??????????????????? | | ????????????????## """ a ##?????????????????? | | ?????????????????# """ % #????#????????????? | | ?????????????????## ### #????????????? | | ??????????????????## #????????????? | | ???????????????????## #????????????? | | ????????????????????## ######$?????????????? | | ?????????????????????## #???????????????????? | | ??????????????????????## a ####?????????????????? | | ???????????????????????## #?????????????????? | | ????????????????????????# ## ^#?????????????????? | | ????????????????????????# # #?????????????????? | | ????????????????????????#@ ^# #?????????????????? | | ????????????????????????# ^ #???????????????????? | | ???????????????????????? ?????????????????? | | ????????????????????????##### ??????????????? | | ?????????????????????????????# #????????????? | | ??????????????????????????????##### #????????????? | | ?????????????????????????????????????????????????? | | ?????????????????????????????????????????????????? | | ?????????????????????????????????????????????????? | | ?????????????????????????????????????????????????? | | ?????????????????????????????????????????????????? | | ?????????????????????????????????????????????????? | | | | | | | | | | | | | | | | | | | | | | | | | | | +----------------------------------------------------+ Best States ------------- Heat Dissipation 25 Energy Generation 14 Energy Capacity 250 Matter Stores 300 Matter Capacity 300 Sight Range 16 Terrain Scan Density 10 Evasion (%) 44 Recoil Reduction 1 Item Schematics ----------------- None Robot Schematics ------------------ None Fabricated ------------ Nothing Alien Tech Used ----------------- None Achievements -------------- None Challenges ------------ Fragile Parts Game ------ Seed NodeWeightVibroblade Manual? 0 Play Time 00:08:27 Cumulative 447.0 hours Start 2019.12.28 @ 15:38:56 End 2019.12.28 @ 15:45:31 Sessions 1 Manual Loads 0 Difficulty Rogue Special Mode None Game No. 342 Rogue 338 Adventurer 4 Explorer 0 Win Type - Total 44 Types 36/3/1/2/2/0/0 Lore% 93 Gallery% 94 Achievement% 92 Wizard Run 0 Options --------- ASCII 0 Keyboard 0 Movement Vi Keybinds 0 Fullscreen 0 Font 16/Terminus Map View 76x50 Tactical HUD 1 Map Filters NONE Filters NONE Steam 1 RUN: 470a8e1c-e177-4421-9c28-af922b62f624